fUST/lending_fUST_20240911
["ID","MTS","AMOUNT","RATE_DAILY","PERIOD"]
[337761061,1726065043472,-500.0,0.00024657,2]
[337761062,1726065043482,-460.17808835,0.00024657,2]
[337761063,1726065043491,-1556.16,0.00024657,2]
[337761064,1726065043501,-500.0,0.00024657,2]
[337761065,1726065043513,-1862.88,0.00024657,2]
[337761066,1726065043522,-500.0,0.00024657,2]
[337761067,1726065043532,-500.0,0.00024657,2]
[337761068,1726065043541,-500.0,0.00024657,2]
[337761069,1726065043551,-500.0,0.00024657,2]
[337761070,1726065043560,-500.0,0.00024657,2]
[337761071,1726065043569,-500.0,0.00024657,2]
[337761072,1726065043579,-529.82,0.00024657,2]
[337761073,1726065043589,-500.0,0.00024657,2]
[337761074,1726065043599,-500.0,0.00024657,2]
[337761075,1726065043609,-503.70615917,0.00024657,2]
[337761076,1726065043619,-500.0,0.00024657,2]
[337761077,1726065043628,-500.0,0.00024657,2]
[337761078,1726065043638,-500.0,0.00024657,2]
[337761079,1726065043647,-284.80761889,0.00024657,2]
[337761080,1726065043657,-500.0,0.00024657,2]
[337761081,1726065043666,-500.0,0.00024657,2]
[337761082,1726065043677,-1278.44,0.00024657,2]
[337761083,1726065043686,-500.0,0.00024657,2]
[337761084,1726065043695,-500.0,0.00024657,2]
[337761085,1726065043706,-200.0,0.00024657,2]
[337761086,1726065043716,-500.0,0.00024657,2]
[337761087,1726065043726,-972.67,0.00024657,2]
[337761088,1726065043738,-2195.54,0.00024657,2]
[337761089,1726065043748,-500.0,0.00024657,2]
[337761090,1726065043759,-433.28867451,0.00024657,2]
[337761091,1726065043770,-822.83,0.00024657,2]
[337761092,1726065043780,-711.68,0.00024657,2]
[337761093,1726065043790,-500.0,0.00024657,2]
[337761094,1726065043800,-500.0,0.00024657,2]
[337761095,1726065043810,-641.87072527,0.00024657,2]
[337761096,1726065043820,-936.09,0.00024657,2]
[337761097,1726065043830,-500.0,0.00024657,2]
[337761098,1726065043840,-1081.97,0.00024657,2]
[337761099,1726065043851,-500.0,0.00024657,2]
[337761100,1726065043862,-500.0,0.00024657,2]
[337761101,1726065043871,-500.0,0.00024657,2]
[337761102,1726065043881,-500.0,0.00024657,2]
[337761103,1726065043891,-500.0,0.00024657,2]
[337761104,1726065043901,-589.89,0.00024657,2]
[337761105,1726065043910,-500.0,0.00024657,2]
[337761106,1726065043920,-503.89474864,0.00024657,2]
[337761107,1726065043930,-500.0,0.00024657,2]
[337761108,1726065043941,-500.0,0.00024657,2]
[337761109,1726065043951,-684.99,0.00024657,2]
[337761110,1726065043960,-500.0,0.00024657,2]
[337761111,1726065043971,-500.0,0.00024657,2]
[337761112,1726065043980,-500.0,0.00024657,2]
[337761113,1726065043990,-500.0,0.00024657,2]
[337761114,1726065043999,-500.0,0.00024657,2]
[337761115,1726065044008,-500.0,0.00024657,2]
[337761116,1726065044023,-1099.18,0.00024657,2]
[337761117,1726065044034,-563.3,0.00024657,2]
[337761118,1726065044044,-500.0,0.00024657,2]
[337761119,1726065044053,-500.0,0.00024657,2]
[337761120,1726065044063,-500.0,0.00024657,2]
[337761121,1726065044078,-2052.39,0.00024657,2]
[337761122,1726065044088,-500.0,0.00024657,2]
[337761123,1726065044097,-500.0,0.00024657,2]
[337761124,1726065044108,-500.0,0.00024657,2]
[337761125,1726065044118,-500.0,0.00024657,2]
[337761126,1726065044127,-500.0,0.00024657,2]
[337761127,1726065044136,-500.0,0.00024657,2]
[337761128,1726065044147,-574.35,0.00024657,2]
[337761129,1726065044157,-1144.71,0.00024657,2]
[337761130,1726065044167,-500.0,0.00024657,2]
[337761131,1726065044176,-500.0,0.00024657,2]
[337761132,1726065044186,-231.19252337,0.00024657,2]
[337761179,1726066232130,-166.733073,0.00022827,2]
[337761181,1726066232140,-424.516927,0.00023112,2]
[337761241,1726066238069,-8747.31205,0.00023112,2]
[337761243,1726066238079,-166.462944,0.00023491,2]
[337761245,1726066238089,-300.0,0.00023995,2]
[337761247,1726066238100,-2893.13440268,0.00024,30]
[337761249,1726066238110,-153.0,0.00024,2]
[337761251,1726066238119,-153.0,0.00024,2]
[337761253,1726066238128,-414.0,0.00024,2]
[337761255,1726066238138,-153.0,0.00024,2]
[337761257,1726066238147,-153.0,0.00024,2]
[337761259,1726066238156,-153.0,0.00024,2]
[337761261,1726066238166,-1073.58702857,0.00024537,2]
[337761263,1726066238178,-1000.0,0.00024547,2]
[337761265,1726066238187,-1848.68352855,0.00024557,2]
[337761267,1726066238196,-485.58704211,0.00024602,2]
[337761269,1726066238205,-487.92485667,0.00024636,2]
[337761271,1726066238215,-500.94911414,0.00024636,2]
[337761273,1726066238224,-503.39280059,0.00024636,2]
[337761276,1726066238233,-114450.51896632,0.00024637,3]
[337761278,1726066238250,-971.94646769,0.00024637,3]
[337761478,1726066240292,-251573.7759416,0.00024637,3]
[337761671,1726066243230,-1753.3630825,0.00024637,3]
[337761672,1726066243242,-1028.9275,0.00024637,3]
[337761673,1726066243254,-1627.50290889,0.00024637,3]
[337761674,1726066243263,-50537.1581208,0.00024637,3]
[337761675,1726066243273,-742.68,0.00024637,3]
[337761676,1726066243282,-12634.2895302,0.00024647,3]
[337761677,1726066243292,-500.0,0.00024657,2]
[337761678,1726066243302,-500.0,0.00024657,2]
[337761679,1726066243311,-500.0,0.00024657,2]
[337761680,1726066243321,-500.0,0.00024657,2]
[337761681,1726066243330,-503.21330882,0.00024657,2]
[337761682,1726066243340,-500.0,0.00024657,2]
[337761683,1726066243350,-504.10301054,0.00024657,2]
[337761684,1726066243360,-1537.27,0.00024657,2]
[337761685,1726066243370,-500.0,0.00024657,2]
[337761686,1726066243380,-500.0,0.00024657,2]
[337761687,1726066243390,-500.0,0.00024657,2]
[337761688,1726066243404,-597.9853225,0.00024657,2]
[337761689,1726066243414,-500.0,0.00024657,2]
[337761690,1726066243424,-500.0,0.00024657,2]
[337761691,1726066243434,-1851.45,0.00024657,2]
[337761692,1726066243449,-500.0,0.00024657,2]
[337761693,1726066243459,-500.0,0.00024657,2]
[337761694,1726066243470,-521.06,0.00024657,2]
[337761695,1726066243480,-500.0,0.00024657,2]
[337761696,1726066243490,-500.0,0.00024657,2]
[337761697,1726066243500,-500.0,0.00024657,2]
[337761698,1726066243510,-500.0,0.00024657,2]
[337761699,1726066243520,-500.0,0.00024657,2]
[337761700,1726066243530,-500.0,0.00024657,2]
[337761701,1726066243540,-500.0,0.00024657,2]
[337761702,1726066243550,-500.0,0.00024657,2]
[337761703,1726066243559,-932.14,0.00024657,2]
[337761704,1726066243570,-1086.26,0.00024657,2]
[337761705,1726066243580,-500.0,0.00024657,2]
[337761706,1726066243589,-682.02,0.00024657,2]
[337761707,1726066243599,-2776.2,0.00024657,2]
[337761708,1726066243609,-387.35150364,0.00024657,2]
[337761709,1726066243623,-1011.12849636,0.00024657,2]
[337761710,1726066243632,-500.0,0.00024657,2]
[337761711,1726066243642,-500.0,0.00024657,2]
[337761712,1726066243652,-897.09,0.00024657,2]
[337761713,1726066243662,-500.0,0.00024657,2]
[337761714,1726066243672,-2104.06,0.00024657,2]
[337761715,1726066243683,-500.0,0.00024657,2]
[337761716,1726066243693,-500.0,0.00024657,2]
[337761717,1726066243703,-636.470809,0.00024657,2]
[337761718,1726066243712,-297.55132558,0.00024657,2]
[337761719,1726066243722,-500.0,0.00024657,2]
[337761720,1726066243732,-539.82,0.00024657,2]
[337761721,1726066243742,-2463.77,0.00024657,2]
[337761722,1726066243752,-1327.44,0.00024657,2]
[337761723,1726066243761,-563.64,0.00024657,2]
[337761724,1726066243770,-500.0,0.00024657,2]
[337761725,1726066243779,-550.42,0.00024657,2]
[337761726,1726066243789,-487.58248287,0.00024657,2]
[337761727,1726066243798,-500.0,0.00024657,2]
[337761728,1726066243807,-476.95236802,0.00024657,2]
[337761729,1726066243817,-613.86,0.00024657,2]
[337761730,1726066243826,-500.0,0.00024657,2]
[337761731,1726066243835,-196.92598557,0.00024657,2]
[337761732,1726066243845,-500.0,0.00024657,2]
[337761733,1726066243854,-500.0,0.00024657,2]
[337761734,1726066243864,-792.85,0.00024657,2]
[337761735,1726066243873,-500.0,0.00024657,2]
[337761736,1726066243883,-1003.05,0.00024657,2]
[337761737,1726066243892,-500.0,0.00024657,2]
[337761738,1726066243902,-500.0,0.00024657,2]
[337761739,1726066243912,-500.0,0.00024657,2]
[337761740,1726066243921,-500.0,0.00024657,2]
[337761741,1726066243931,-638.93,0.00024657,2]
[337761742,1726066243940,-656.6,0.00024657,2]
[337761743,1726066243950,-500.0,0.00024657,2]
[337761744,1726066243959,-500.0,0.00024657,2]
[337761745,1726066243968,-500.0,0.00024657,2]
[337761746,1726066243978,-500.0,0.00024657,2]
[337761747,1726066243987,-500.0,0.00024657,2]
[337761748,1726066243997,-500.0,0.00024657,2]
[337761749,1726066244006,-500.0,0.00024657,2]
[337761750,1726066244015,-642.53,0.00024657,2]
[337761751,1726066244025,-500.0,0.00024657,2]
[337761752,1726066244035,-900.33,0.00024657,2]
[337761753,1726066244045,-500.0,0.00024657,2]
[337761754,1726066244054,-626.87,0.00024657,2]
[337761755,1726066244064,-500.0,0.00024657,2]
[337761756,1726066244074,-533.11,0.00024657,2]
[337761758,1726066244083,-500.0,0.00024657,2]
[337761759,1726066244093,-1053.38,0.00024657,2]
[337761761,1726066244103,-500.0,0.00024657,2]
[337761763,1726066244112,-1966.88,0.00024657,2]
[337761764,1726066244121,-975.38,0.00024657,2]
[337761766,1726066244131,-500.0,0.00024657,2]
[337761767,1726066244141,-500.0,0.00024657,2]
[337761768,1726066244151,-1097.02,0.00024657,2]
[337761769,1726066244160,-500.0,0.00024657,2]
[337761771,1726066244370,-888.04,0.00024657,2]
[337761773,1726066244380,-504.4443631,0.00024657,2]
[337761774,1726066244390,-762.49,0.00024657,2]
[337761776,1726066244403,-500.0,0.00024657,2]
[337761777,1726066244413,-500.0,0.00024657,2]
[337761779,1726066244422,-500.0,0.00024657,2]
[337761780,1726066244433,-500.0,0.00024657,2]
[337761782,1726066244442,-500.0,0.00024657,2]
[337761783,1726066244452,-500.0,0.00024657,2]
[337761785,1726066244461,-500.0,0.00024657,2]
[337761787,1726066244472,-782.46,0.00024657,2]
[337761788,1726066244481,-500.0,0.00024657,2]
[337761789,1726066244491,-621.12,0.00024657,2]
[337761791,1726066244500,-500.0,0.00024657,2]
[337761793,1726066244510,-676.86,0.00024657,2]
[337761794,1726066244520,-500.0,0.00024657,2]
[337761795,1726066244530,-500.0,0.00024657,2]
[337761796,1726066244539,-500.0,0.00024657,2]
[337761798,1726066244548,-500.0,0.00024657,2]
[337761800,1726066244558,-500.0,0.00024657,2]
[337761801,1726066244568,-503.1845826,0.00024657,2]
[337761803,1726066244578,-500.0,0.00024657,2]
[337761804,1726066244588,-500.0,0.00024657,2]
[337761805,1726066244598,-504.59967184,0.00024657,2]
[337761806,1726066244607,-500.0,0.00024657,2]
[337761807,1726066244616,-1261.21,0.00024657,2]
[337761808,1726066244626,-500.0,0.00024657,2]
[337761809,1726066244636,-500.0,0.00024657,2]
[337761810,1726066244645,-1199.13,0.00024657,2]
[337761811,1726066244654,-515.79171127,0.00024657,2]
[337761812,1726066244664,-500.0,0.00024657,2]
[337761813,1726066244673,-1492.81,0.00024657,2]
[337761814,1726066244685,-2197.89,0.00024657,2]
[337761815,1726066244694,-446.34262782,0.00024657,2]
[337761816,1726066244704,-256.54942542,0.00024657,2]
[337761817,1726066244713,-458.42126429,0.00024657,2]
[337761818,1726066244722,-500.0,0.00024657,2]
[337761819,1726066244732,-500.0,0.00024657,2]
[337761820,1726066244741,-500.0,0.00024657,2]
[337761821,1726066244751,-500.0,0.00024657,2]
[337761822,1726066244760,-662.83,0.00024657,2]
[337761823,1726066244769,-933.16,0.00024657,2]
[337761824,1726066244778,-500.0,0.00024657,2]
[337761825,1726066244788,-500.0,0.00024657,2]
[337761826,1726066244797,-843.53,0.00024657,2]
[337761827,1726066244807,-553.79,0.00024657,2]
[337761828,1726066244816,-500.0,0.00024657,2]
[337761829,1726066244825,-500.0,0.00024657,2]
[337761830,1726066244835,-500.0,0.00024657,2]
[337761831,1726066244844,-500.0,0.00024657,2]
[337761832,1726066244853,-500.0,0.00024657,2]
[337761833,1726066244862,-1531.78,0.00024657,2]
[337761834,1726066244872,-500.0,0.00024657,2]
[337761835,1726066244881,-500.0,0.00024657,2]
[337761836,1726066244890,-500.0,0.00024657,2]
[337761837,1726066244901,-500.0,0.00024657,2]
[337761838,1726066244911,-1315.77,0.00024657,2]
[337761839,1726066244920,-500.0,0.00024657,2]
[337761840,1726066244930,-500.0,0.00024657,2]
[337761841,1726066244940,-315.1811913,0.00024657,2]
[337761842,1726066244949,-500.0,0.00024657,2]
[337761843,1726066244959,-500.0,0.00024657,2]
[337761844,1726066244970,-1266.62,0.00024657,2]
[337761845,1726066244980,-500.0,0.00024657,2]
[337761846,1726066244989,-1105.65,0.00024657,2]
[337761847,1726066244999,-500.0,0.00024657,2]
[337761848,1726066245009,-500.0,0.00024657,2]
[337761849,1726066245019,-500.0,0.00024657,2]
[337761850,1726066245029,-500.0,0.00024657,2]
[337761851,1726066245039,-1465.53,0.00024657,2]
[337761852,1726066245049,-500.0,0.00024657,2]
[337761853,1726066245059,-1372.57,0.00024657,2]
[337761854,1726066245068,-500.0,0.00024657,2]
[337761855,1726066245078,-500.0,0.00024657,2]
[337761856,1726066245088,-1565.58,0.00024657,2]
[337761857,1726066245098,-1235.25,0.00024657,2]
[337761858,1726066245109,-500.0,0.00024657,2]
[337761859,1726066245119,-500.0,0.00024657,2]
[337761860,1726066245129,-500.0,0.00024657,2]
[337761861,1726066245139,-1513.19,0.00024657,2]
[337761862,1726066245149,-500.0,0.00024657,2]
[337761863,1726066245159,-1306.74,0.00024657,2]
[337761864,1726066245169,-500.0,0.00024657,2]
[337761865,1726066245178,-571.16,0.00024657,2]
[337761866,1726066245191,-500.0,0.00024657,2]
[337761867,1726066245200,-500.0,0.00024657,2]
[337761868,1726066245210,-500.0,0.00024657,2]
[337761869,1726066245220,-500.0,0.00024657,2]
[337761870,1726066245230,-500.0,0.00024657,2]
[337761871,1726066245240,-336.50846158,0.00024657,2]
[337761872,1726066245251,-500.0,0.00024657,2]
[337761873,1726066245261,-500.0,0.00024657,2]
[337761874,1726066245271,-500.0,0.00024657,2]
[337761875,1726066245280,-500.0,0.00024657,2]
[337761876,1726066245290,-500.0,0.00024657,2]
[337761877,1726066245299,-2261.54,0.00024657,2]
[337761878,1726066245309,-544.0,0.00024657,2]
[337761879,1726066245318,-500.0,0.00024657,2]
[337761880,1726066245328,-500.0,0.00024657,2]
[337761881,1726066245337,-500.0,0.00024657,2]
[337761882,1726066245347,-500.0,0.00024657,2]
[337761883,1726066245358,-1721.7,0.00024657,2]
[337761884,1726066245368,-500.0,0.00024657,2]
[337761885,1726066245378,-1721.7,0.00024657,2]
[337761886,1726066245388,-1721.7,0.00024657,2]
[337761887,1726066245403,-1721.7,0.00024657,2]
[337761888,1726066245412,-1721.7,0.00024657,2]
[337761889,1726066245421,-1721.7,0.00024657,2]
[337761890,1726066245431,-1721.7,0.00024657,2]
[337761891,1726066245440,-1721.7,0.00024657,2]
[337761892,1726066245449,-1721.7,0.00024657,2]
[337761893,1726066245459,-1721.7,0.00024657,2]
[337761894,1726066245468,-1721.7,0.00024657,2]
[337761895,1726066245478,-1721.7,0.00024657,2]
[337761896,1726066245487,-1721.7,0.00024657,2]
[337761897,1726066245496,-1721.7,0.00024657,2]
[337761898,1726066245506,-1721.7,0.00024657,2]
[337761899,1726066245515,-1721.7,0.00024657,2]
[337761900,1726066245524,-500.0,0.00024657,2]
[337761901,1726066245533,-1721.7,0.00024657,2]
[337761902,1726066245542,-1721.7,0.00024657,2]
[337761903,1726066245551,-1721.7,0.00024657,2]
[337761904,1726066245560,-1721.7,0.00024657,2]
[337761905,1726066245570,-1721.7,0.00024657,2]
[337761906,1726066245579,-1721.7,0.00024657,2]
[337761907,1726066245588,-1721.7,0.00024657,2]
[337761908,1726066245597,-1721.84,0.00024657,2]
[337761909,1726066245606,-500.0,0.00024657,2]
[337761911,1726066245615,-500.0,0.00024657,2]
[337761913,1726066245624,-500.0,0.00024657,2]
[337761915,1726066245633,-500.0,0.00024657,2]
[337761918,1726066245642,-505.24778635,0.00024657,2]
[337761920,1726066245651,-576.37,0.00024657,2]
[337761921,1726066245660,-500.0,0.00024657,2]
[337761924,1726066245668,-1784.66,0.00024657,2]
[337761926,1726066245678,-500.0,0.00024657,2]
[337761927,1726066245688,-500.0,0.00024657,2]
[337761929,1726066245697,-236.26668118,0.00024657,2]
[337761930,1726066245706,-500.0,0.00024657,2]
[337761932,1726066245716,-2668.67,0.00024657,2]
[337761933,1726066245724,-675.4,0.00024657,2]
[337761934,1726066245733,-1461.8,0.00024657,2]
[337761935,1726066245743,-1190.21,0.00024657,2]
[337761936,1726066245751,-1667.85,0.00024657,2]
[337761937,1726066245761,-500.0,0.00024657,2]
[337761938,1726066245770,-500.0,0.00024657,2]
[337761939,1726066245779,-708.7,0.00024657,2]
[337761940,1726066245789,-500.0,0.00024657,2]
[337761941,1726066245798,-500.0,0.00024657,2]
[337761942,1726066245808,-546.38,0.00024657,2]
[337761943,1726066245818,-1432.3,0.00024657,2]
[337761944,1726066245827,-500.0,0.00024657,2]
[337761945,1726066245837,-500.0,0.00024657,2]
[337761946,1726066245847,-500.0,0.00024657,2]
[337761947,1726066245856,-154.88272144,0.00024657,2]
[337761948,1726066245865,-556.43,0.00024657,2]
[337761950,1726066245875,-500.0,0.00024657,2]
[337761951,1726066245884,-500.0,0.00024657,2]
[337761953,1726066245893,-863.0,0.00024657,2]
[337761954,1726066245903,-627.99,0.00024657,2]
[337761955,1726066245912,-500.0,0.00024657,2]
[337761956,1726066245921,-500.0,0.00024657,2]
[337761958,1726066245931,-587.96,0.00024657,2]
[337761960,1726066245940,-1587.24,0.00024657,2]
[337761961,1726066245949,-500.0,0.00024657,2]
[337761962,1726066245959,-1176.54,0.00024657,2]
[337761963,1726066245968,-500.0,0.00024657,2]
[337761964,1726066245977,-500.0,0.00024657,2]
[337761966,1726066245987,-500.0,0.00024657,2]
[337761968,1726066245996,-500.0,0.00024657,2]
[337761969,1726066246006,-500.0,0.00024657,2]
[337761970,1726066246016,-565.18149852,0.00024657,2]
[337761971,1726066246025,-560.66,0.00024657,2]
[337761972,1726066246035,-500.0,0.00024657,2]
[337761974,1726066246044,-512.49311291,0.00024657,2]
[337761975,1726066246054,-3070.63,0.00024657,2]
[337761976,1726066246063,-500.0,0.00024657,2]
[337761977,1726066246073,-500.0,0.00024657,2]
[337761978,1726066246082,-2007.17,0.00024657,2]
[337761979,1726066246092,-500.0,0.00024657,2]
[337761981,1726066246102,-500.0,0.00024657,2]
[337761982,1726066246112,-471.83597188,0.00024657,2]
[337761983,1726066246121,-500.0,0.00024657,2]
[337761984,1726066246131,-836.73,0.00024657,2]
[337761985,1726066246140,-500.0,0.00024657,2]
[337761986,1726066246149,-500.0,0.00024657,2]
[337761987,1726066246159,-2570.89,0.00024657,2]
[337761988,1726066246168,-500.0,0.00024657,2]
[337761989,1726066246178,-1083.83,0.00024657,2]
[337761990,1726066246188,-500.0,0.00024657,2]
[337761991,1726066246217,-500.0,0.00024657,2]
[337761992,1726066246227,-500.0,0.00024657,2]
[337761993,1726066246237,-500.0,0.00024657,2]
[337761994,1726066246246,-511.55232911,0.00024657,2]
[337761995,1726066246256,-500.0,0.00024657,2]
[337761996,1726066246265,-500.0,0.00024657,2]
[337761997,1726066246275,-656.32,0.00024657,2]
[337761998,1726066246284,-1575.61,0.00024657,2]
[337761999,1726066246293,-500.0,0.00024657,2]
[337762000,1726066246302,-1026.34,0.00024657,2]
[337762001,1726066246311,-500.0,0.00024657,2]
[337762002,1726066246321,-500.0,0.00024657,2]
[337762003,1726066246330,-500.0,0.00024657,2]
[337762004,1726066246339,-952.7,0.00024657,2]
[337762005,1726066246348,-500.0,0.00024657,2]
[337762006,1726066246357,-500.0,0.00024657,2]
[337762007,1726066246367,-548.49,0.00024657,2]
[337762008,1726066246376,-500.0,0.00024657,2]
[337762009,1726066246385,-500.0,0.00024657,2]
[337762010,1726066246398,-500.0,0.00024657,2]
[337762011,1726066246412,-500.0,0.00024657,2]
[337762012,1726066246422,-500.0,0.00024657,2]
[337762013,1726066246432,-500.0,0.00024657,2]
[337762014,1726066246452,-500.0,0.00024657,2]
[337762015,1726066246462,-500.0,0.00024657,2]
[337762016,1726066246472,-536.85635347,0.00024657,2]
[337762017,1726066246481,-500.0,0.00024657,2]
[337762018,1726066246491,-505.42248626,0.00024657,2]
[337762019,1726066246500,-3464.45,0.00024657,2]
[337762020,1726066246509,-6493.64,0.00024657,2]
[337762021,1726066246519,-500.0,0.00024657,2]
[337762022,1726066246528,-841.16,0.00024657,2]
[337762023,1726066246537,-500.0,0.00024657,2]
[337762024,1726066246546,-500.0,0.00024657,2]
[337762025,1726066246555,-707.42,0.00024657,2]
[337762026,1726066246565,-500.0,0.00024657,2]
[337762027,1726066246574,-1059.15,0.00024657,2]
[337762028,1726066246583,-500.0,0.00024657,2]
[337762029,1726066246593,-500.0,0.00024657,2]
[337762030,1726066246602,-746.91,0.00024657,2]
[337762031,1726066246611,-500.0,0.00024657,2]
[337762032,1726066246621,-500.0,0.00024657,2]
[337762033,1726066246630,-500.0,0.00024657,2]
[337762034,1726066246640,-500.0,0.00024657,2]
[337762035,1726066246650,-500.0,0.00024657,2]
[337762036,1726066246661,-500.0,0.00024657,2]
[337762037,1726066246670,-2620.83,0.00024657,2]
[337762038,1726066246679,-500.0,0.00024657,2]
[337762039,1726066246691,-500.0,0.00024657,2]
[337762040,1726066246700,-1742.61,0.00024657,2]
[337762041,1726066246710,-500.0,0.00024657,2]
[337762042,1726066246719,-500.0,0.00024657,2]
[337762043,1726066246728,-500.0,0.00024657,2]
[337762044,1726066246737,-17588.45,0.00024657,2]
[337762045,1726066246747,-17588.45,0.00024657,2]
[337762046,1726066246757,-17588.45,0.00024657,2]
[337762047,1726066246766,-17588.45,0.00024657,2]
[337762048,1726066246775,-17588.45,0.00024657,2]
[337762049,1726066246785,-17588.45,0.00024657,2]
[337762050,1726066246794,-17588.45,0.00024657,2]
[337762051,1726066246803,-500.0,0.00024657,2]
[337762052,1726066246811,-17588.45,0.00024657,2]
[337762053,1726066246821,-500.0,0.00024657,2]
[337762054,1726066246830,-500.0,0.00024657,2]
[337762055,1726066246840,-17588.45,0.00024657,2]
[337762056,1726066246850,-17588.45,0.00024657,2]
[337762057,1726066246859,-500.0,0.00024657,2]
[337762058,1726066246868,-17588.45,0.00024657,2]
[337762059,1726066246877,-364.92880627,0.00024657,2]
[337762060,1726066246886,-17588.45,0.00024657,2]
[337762061,1726066246895,-17588.45,0.00024657,2]
[337762062,1726066246905,-17588.45,0.00024657,2]
[337762063,1726066246914,-17588.45,0.00024657,2]
[337762064,1726066246924,-17588.45,0.00024657,2]
[337762065,1726066246933,-17588.45,0.00024657,2]
[337762066,1726066246943,-17588.45,0.00024657,2]
[337762067,1726066246952,-500.0,0.00024657,2]
[337762068,1726066246961,-17588.45,0.00024657,2]
[337762069,1726066246970,-500.0,0.00024657,2]
[337762070,1726066246979,-315.80046211,0.00024657,2]
[337762071,1726066246989,-17588.45,0.00024657,2]
[337762072,1726066246998,-552.51,0.00024657,2]
[337762073,1726066247007,-17588.45,0.00024657,2]
[337762074,1726066247016,-17588.45,0.00024657,2]
[337762075,1726066247027,-17588.45,0.00024657,2]
[337762076,1726066247037,-17588.46313104,0.00024657,2]
[337762077,1726066247046,-507.97759425,0.00024657,2]
[337762078,1726066247055,-500.0,0.00024657,2]
[337762079,1726066247064,-1833.81,0.00024657,2]
[337762080,1726066247073,-500.0,0.00024657,2]
[337762081,1726066247083,-525.04,0.00024657,2]
[337762082,1726066247092,-1447.83,0.00024657,2]
[337762083,1726066247101,-500.0,0.00024657,2]
[337762084,1726066247110,-500.0,0.00024657,2]
[337762085,1726066247119,-500.0,0.00024657,2]
[337762086,1726066247129,-500.0,0.00024657,2]
[337762087,1726066247139,-1491.32,0.00024657,2]
[337762088,1726066247149,-500.0,0.00024657,2]
[337762089,1726066247160,-2098.06,0.00024657,2]
[337762090,1726066247169,-500.0,0.00024657,2]
[337762091,1726066247179,-1201.33,0.00024657,2]
[337762092,1726066247190,-500.0,0.00024657,2]
[337762093,1726066247199,-640.14,0.00024657,2]
[337762094,1726066247208,-500.0,0.00024657,2]
[337762095,1726066247217,-814.29,0.00024657,2]
[337762096,1726066247226,-500.0,0.00024657,2]
[337762097,1726066247236,-905.76,0.00024657,2]
[337762098,1726066247246,-500.0,0.00024657,2]
[337762099,1726066247259,-776.33,0.00024657,2]
[337762100,1726066247268,-500.0,0.00024657,2]
[337762101,1726066247277,-4570.61,0.00024657,2]
[337762102,1726066247286,-500.0,0.00024657,2]
[337762103,1726066247295,-1785.26,0.00024657,2]
[337762104,1726066247305,-500.0,0.00024657,2]
[337762105,1726066247316,-500.0,0.00024657,2]
[337762106,1726066247326,-500.0,0.00024657,2]
[337762107,1726066247336,-500.0,0.00024657,2]
[337762108,1726066247346,-309.47607339,0.00024657,2]
[337762109,1726066247356,-502.73,0.00024657,2]
[337762110,1726066247364,-500.0,0.00024657,2]
[337762111,1726066247374,-500.0,0.00024657,2]